[Event "Early-Titled-Tuesday-Blitz-January-16-2024"]
[Site "Chess.com"]
[Date "2024.01.16"]
[Round "2"]
[White "finec2"]
[Black "KChor05"]
[Result "0-1"]
[WhiteElo "2324"]
[BlackElo "2550"]
[TimeControl "180+1"]
[EndTime "8:17:06 PST"]
[Termination "KChor05 won by resignation"]

1. e4 {[%clk 0:03:00.9]} 1... c5 {[%clk 0:02:59.5]} 2. Nf3 {[%clk 0:03:00.6]}
2... Nc6 {[%clk 0:02:56.7]} 3. d4 {[%clk 0:02:57.7]} 3... cxd4 {[%clk
0:02:56.8]} 4. Nxd4 {[%clk 0:02:57.8]} 4... g6 {[%clk 0:02:57.7]} 5. Nc3 {[%clk
0:02:56.9]} 5... Bg7 {[%clk 0:02:57.8]} 6. Be3 {[%clk 0:02:56.8]} 6... Nf6
{[%clk 0:02:58]} 7. Bc4 {[%clk 0:02:56.5]} 7... O-O {[%clk 0:02:57.8]} 8. Bb3
{[%clk 0:02:56.3]} 8... d6 {[%clk 0:02:58.2]} 9. f3 {[%clk 0:02:55.8]} 9... Bd7
{[%clk 0:02:58.2]} 10. Qd2 {[%clk 0:02:55.8]} 10... Na5 {[%clk 0:02:45.6]} 11.
O-O-O {[%clk 0:02:52.8]} 11... Nxb3+ {[%clk 0:02:44.2]} 12. axb3 {[%clk
0:02:52.9]} 12... a5 {[%clk 0:02:39.9]} 13. Kb1 {[%clk 0:02:38.6]} 13... a4
{[%clk 0:02:36]} 14. b4 {[%clk 0:02:38.6]} 14... a3 {[%clk 0:02:33.3]} 15. b3
{[%clk 0:02:37.8]} 15... Qc7 {[%clk 0:02:25.2]} 16. Na2 {[%clk 0:02:37.3]} 16...
Rfd8 {[%clk 0:02:17.1]} 17. g4 {[%clk 0:02:36.1]} 17... e5 {[%clk 0:01:49.3]}
18. Ne2 {[%clk 0:02:30.3]} 18... Be6 {[%clk 0:01:49.3]} 19. g5 {[%clk
0:02:14.7]} 19... Nh5 {[%clk 0:01:49.1]} 20. Nec3 {[%clk 0:02:13.6]} 20... Nf4
{[%clk 0:01:45.1]} 21. Nd5 {[%clk 0:01:37.5]} 21... Nxd5 {[%clk 0:01:38.6]} 22.
exd5 {[%clk 0:01:36.5]} 22... Bf5 {[%clk 0:01:39.5]} 23. h4 {[%clk 0:01:21.2]}
23... Rdc8 {[%clk 0:01:16]} 24. Rh2 {[%clk 0:01:20.6]} 24... Qd7 {[%clk
0:01:09.8]} 25. h5 {[%clk 0:01:15.6]} 25... Rxc2 {[%clk 0:01:07]} 26. Qxc2
{[%clk 0:01:08.1]} 26... Rc8 {[%clk 0:01:06.5]} 27. Rc1 {[%clk 0:01:00.3]} 27...
Rxc2 {[%clk 0:00:54]} 28. Rcxc2 {[%clk 0:00:57.8]} 28... gxh5 {[%clk 0:00:53.1]}
29. Kc1 {[%clk 0:00:57.2]} 29... Bxc2 {[%clk 0:00:52.4]} 30. Rxc2 {[%clk
0:00:56.7]} 30... Qf5 {[%clk 0:00:49]} 31. Rf2 {[%clk 0:00:51.4]} 31... h4
{[%clk 0:00:47.7]} 32. Nc3 {[%clk 0:00:47.6]} 32... Qd3 {[%clk 0:00:44.3]} 33.
Nd1 {[%clk 0:00:45.3]} 33... Qxb3 {[%clk 0:00:42.1]} 0-1

[Event "Early-Titled-Tuesday-Blitz-January-16-2024"]
[Site "Chess.com"]
[Date "2024.01.16"]
[Round "2"]
[White "Millerkallpa"]
[Black "FlemingA"]
[Result "1-0"]
[WhiteElo "2103"]
[BlackElo "2430"]
[TimeControl "180+1"]
[EndTime "8:17:07 PST"]
[Termination "Millerkallpa won by resignation"]

1. e4 {[%clk 0:03:00.9]} 1... e6 {[%clk 0:02:58.2]} 2. d4 {[%clk 0:02:59.8]}
2... d5 {[%clk 0:02:58.3]} 3. e5 {[%clk 0:02:59.5]} 3... c5 {[%clk 0:02:58.2]}
4. c3 {[%clk 0:03:00.1]} 4... Nc6 {[%clk 0:02:58.8]} 5. Nf3 {[%clk 0:02:58.8]}
5... Qb6 {[%clk 0:02:58]} 6. a3 {[%clk 0:02:57.6]} 6... Nh6 {[%clk 0:02:56.8]}
7. b4 {[%clk 0:02:53.5]} 7... cxd4 {[%clk 0:02:56.2]} 8. cxd4 {[%clk 0:02:54.4]}
8... Nf5 {[%clk 0:02:56.5]} 9. Bb2 {[%clk 0:02:52.5]} 9... Bd7 {[%clk
0:02:53.4]} 10. g4 {[%clk 0:02:17.6]} 10... Nh6 {[%clk 0:02:51.2]} 11. h3 {[%clk
0:02:14.9]} 11... a5 {[%clk 0:02:49.2]} 12. b5 {[%clk 0:02:13.1]} 12... Ne7
{[%clk 0:02:43.8]} 13. a4 {[%clk 0:02:11.8]} 13... Ng6 {[%clk 0:02:41.5]} 14.
Qd2 {[%clk 0:02:01.5]} 14... Rc8 {[%clk 0:02:34.8]} 15. Bd3 {[%clk 0:01:51.9]}
15... f6 {[%clk 0:02:25.6]} 16. O-O {[%clk 0:01:26.8]} 16... f5 {[%clk
0:02:17.1]} 17. gxf5 {[%clk 0:01:14.6]} 17... Nxf5 {[%clk 0:02:14.4]} 18. Bxf5
{[%clk 0:01:14.8]} 18... exf5 {[%clk 0:02:15.3]} 19. Nc3 {[%clk 0:01:13]} 19...
Bb4 {[%clk 0:02:13.4]} 20. Nxd5 {[%clk 0:01:07.5]} 20... Bxd2 {[%clk 0:02:04.2]}
21. Nxb6 {[%clk 0:01:07]} 21... Rc2 {[%clk 0:02:04.9]} 22. Ba3 {[%clk
0:00:55.3]} 22... f4 {[%clk 0:01:55]} 23. Rfd1 {[%clk 0:00:41.8]} 23... Bb4
{[%clk 0:01:27.7]} 24. Bxb4 {[%clk 0:00:42.2]} 24... axb4 {[%clk 0:01:28.6]} 25.
e6 {[%clk 0:00:41.7]} 25... Bxe6 {[%clk 0:01:22.1]} 26. Re1 {[%clk 0:00:42.2]}
26... Kf7 {[%clk 0:01:04.2]} 27. Ng5+ {[%clk 0:00:41.9]} 27... Kf6 {[%clk
0:01:04.9]} 28. Nxe6 {[%clk 0:00:40.5]} 28... f3 {[%clk 0:00:57.1]} 29. Nd5+
{[%clk 0:00:39.8]} 29... Kf7 {[%clk 0:00:54.7]} 30. Ng5+ {[%clk 0:00:34.2]}
30... Kf8 {[%clk 0:00:54.1]} 31. Rac1 {[%clk 0:00:29]} 1-0

[Event "Early-Titled-Tuesday-Blitz-January-16-2024"]
[Site "Chess.com"]
[Date "2024.01.16"]
[Round "2"]
[White "chucksterf10"]
[Black "GodDMuhammad"]
[Result "0-1"]
[WhiteElo "2651"]
[BlackElo "2368"]
[TimeControl "180+1"]
[EndTime "8:17:08 PST"]
[Termination "GodDMuhammad won by resignation"]

1. Nf3 {[%clk 0:03:00.9]} 1... Nf6 {[%clk 0:02:58]} 2. c4 {[%clk 0:03:00.5]}
2... e6 {[%clk 0:02:54.3]} 3. b3 {[%clk 0:02:58.6]} 3... d5 {[%clk 0:02:54.4]}
4. Bb2 {[%clk 0:02:59]} 4... Bd6 {[%clk 0:02:53.6]} 5. Nc3 {[%clk 0:02:57.4]}
5... c6 {[%clk 0:02:54]} 6. d3 {[%clk 0:02:49.3]} 6... Nbd7 {[%clk 0:02:53.4]}
7. e4 {[%clk 0:02:49.6]} 7... Qa5 {[%clk 0:02:47.4]} 8. a3 {[%clk 0:02:46.2]}
8... dxe4 {[%clk 0:02:45.7]} 9. b4 {[%clk 0:02:46.6]} 9... Bxb4 {[%clk
0:02:45.2]} 10. axb4 {[%clk 0:02:04.4]} 10... Qxb4 {[%clk 0:02:43.9]} 11. Qd2
{[%clk 0:01:42.4]} 11... exf3 {[%clk 0:02:41.5]} 12. gxf3 {[%clk 0:01:43.3]}
12... Ne5 {[%clk 0:02:41.1]} 13. Bg2 {[%clk 0:01:41.1]} 13... Qxb2 {[%clk
0:02:38.3]} 14. Qxb2 {[%clk 0:00:59.3]} 14... Nxd3+ {[%clk 0:02:37.1]} 15. Kd2
{[%clk 0:00:56.8]} 15... Nxb2 {[%clk 0:02:38]} 16. Bf1 {[%clk 0:00:57.2]} 16...
Ke7 {[%clk 0:02:22.1]} 17. Kc2 {[%clk 0:00:57]} 17... Nxc4 {[%clk 0:02:17.2]}
18. Bxc4 {[%clk 0:00:57.9]} 18... b5 {[%clk 0:02:17.1]} 19. Bd3 {[%clk
0:00:57.6]} 19... a5 {[%clk 0:02:10.9]} 20. Kb3 {[%clk 0:00:56.7]} 20... Bd7
{[%clk 0:02:11]} 21. h4 {[%clk 0:00:56.9]} 21... Rhb8 {[%clk 0:02:09.4]} 22. h5
{[%clk 0:00:56.2]} 22... c5 {[%clk 0:02:09.3]} 23. Bc2 {[%clk 0:00:51.6]} 23...
c4+ {[%clk 0:02:08.2]} 24. Kb2 {[%clk 0:00:51.7]} 24... b4 {[%clk 0:02:07.1]}
25. Na4 {[%clk 0:00:52.1]} 25... c3+ {[%clk 0:02:04.4]} 26. Kb3 {[%clk
0:00:52.6]} 26... Bc6 {[%clk 0:01:58.6]} 27. Nc5 {[%clk 0:00:45.4]} 27... Rb5
{[%clk 0:01:43.7]} 28. Ne4 {[%clk 0:00:39.3]} 28... Bd5+ {[%clk 0:01:41.7]} 29.
Ka4 {[%clk 0:00:39.4]} 29... Rab8 {[%clk 0:01:34.2]} 30. Bb3 {[%clk 0:00:37.7]}
30... Nxe4 {[%clk 0:01:31.1]} 31. Bxd5 {[%clk 0:00:32.3]} 31... Rxd5 {[%clk
0:01:27.7]} 32. fxe4 {[%clk 0:00:32.3]} 32... Rd2 {[%clk 0:01:28.3]} 33. Kb3
{[%clk 0:00:31]} 33... Rb2+ {[%clk 0:01:27.7]} 34. Kc4 {[%clk 0:00:30.7]} 34...
Rc8+ {[%clk 0:01:28.1]} 35. Kd3 {[%clk 0:00:31.2]} 35... c2 {[%clk 0:01:27]} 36.
Rhc1 {[%clk 0:00:30.3]} 36... b3 {[%clk 0:01:27.3]} 37. e5 {[%clk 0:00:26.9]}
37... a4 {[%clk 0:01:24.2]} 38. Rxa4 {[%clk 0:00:26.6]} 38... Rb1 {[%clk
0:01:24.5]} 39. Ra7+ {[%clk 0:00:25.7]} 39... Ke8 {[%clk 0:01:24.6]} 40. Kd2
{[%clk 0:00:23]} 40... Rd8+ {[%clk 0:01:24.6]} 41. Kc3 {[%clk 0:00:22.9]} 41...
Rxc1 {[%clk 0:01:25.1]} 42. Kxb3 {[%clk 0:00:23.2]} 42... Rb8+ {[%clk
0:01:24.3]} 43. Ka2 {[%clk 0:00:22.7]} 43... Ra1+ {[%clk 0:01:23.5]} 0-1

[Event "Early-Titled-Tuesday-Blitz-January-16-2024"]
[Site "Chess.com"]
[Date "2024.01.16"]
[Round "2"]
[White "WhiteKnight2612"]
[Black "ChainedDowntohell"]
[Result "1-0"]
[WhiteElo "2863"]
[BlackElo "2573"]
[TimeControl "180+1"]
[EndTime "8:17:11 PST"]
[Termination "WhiteKnight2612 won on time"]

1. c4 {[%clk 0:03:00.9]} 1... b6 {[%clk 0:02:55.6]} 2. Nc3 {[%clk 0:02:56.4]}
2... Bb7 {[%clk 0:02:54.4]} 3. e4 {[%clk 0:02:56.1]} 3... e5 {[%clk 0:02:53.4]}
4. d3 {[%clk 0:02:56.7]} 4... Nc6 {[%clk 0:02:51.4]} 5. Nge2 {[%clk 0:02:56.4]}
5... Bc5 {[%clk 0:02:50.8]} 6. Be3 {[%clk 0:02:55.2]} 6... Nge7 {[%clk
0:02:43.9]} 7. Qd2 {[%clk 0:02:55.5]} 7... O-O {[%clk 0:02:42.8]} 8. g4 {[%clk
0:02:49.4]} 8... Ng6 {[%clk 0:02:39.9]} 9. O-O-O {[%clk 0:02:48.7]} 9... Nh4
{[%clk 0:02:31.4]} 10. Kb1 {[%clk 0:02:38.9]} 10... Nd4 {[%clk 0:02:15.7]} 11.
Qc1 {[%clk 0:02:34.5]} 11... c6 {[%clk 0:02:05.7]} 12. Bxd4 {[%clk 0:02:24.4]}
12... exd4 {[%clk 0:02:01.6]} 13. Na4 {[%clk 0:02:25]} 13... Bd6 {[%clk
0:01:47.6]} 14. Nxd4 {[%clk 0:02:16.3]} 14... Qf6 {[%clk 0:01:34.7]} 15. Nf5
{[%clk 0:02:13.1]} 15... Nxf5 {[%clk 0:01:23.5]} 16. gxf5 {[%clk 0:02:12.3]}
16... b5 {[%clk 0:01:22.5]} 17. Nc3 {[%clk 0:02:06.7]} 17... Be5 {[%clk
0:01:10.5]} 18. cxb5 {[%clk 0:01:51]} 18... cxb5 {[%clk 0:01:09.1]} 19. f4
{[%clk 0:01:51.6]} 19... Bd4 {[%clk 0:01:04.6]} 20. Nxb5 {[%clk 0:01:51.3]}
20... Rfc8 {[%clk 0:01:00]} 21. Qd2 {[%clk 0:01:51.3]} 21... Ba6 {[%clk
0:00:36.2]} 22. e5 {[%clk 0:01:32.8]} 22... Qb6 {[%clk 0:00:22.3]} 23. Nxd4
{[%clk 0:01:33.2]} 23... Qxd4 {[%clk 0:00:23.1]} 24. Bg2 {[%clk 0:01:31.4]}
24... Rab8 {[%clk 0:00:21.3]} 25. Be4 {[%clk 0:01:29.6]} 25... Rc5 {[%clk
0:00:14.4]} 26. Rc1 {[%clk 0:01:29.5]} 26... Rcb5 {[%clk 0:00:04.6]} 27. Rc2
{[%clk 0:01:28.8]} 27... h6 {[%clk 0:00:04.1]} 28. h4 {[%clk 0:01:26.7]} 28...
Rb4 {[%clk 0:00:01.7]} 29. f6 {[%clk 0:01:18.5]} 1-0

[Event "Early-Titled-Tuesday-Blitz-January-16-2024"]
[Site "Chess.com"]
[Date "2024.01.16"]
[Round "2"]
[White "DuleMudule"]
[Black "NewYearGirl"]
[Result "1-0"]
[WhiteElo "2834"]
[BlackElo "2408"]
[TimeControl "180+1"]
[EndTime "8:17:13 PST"]
[Termination "DuleMudule won by resignation"]

1. d4 {[%clk 0:03:00.9]} 1... Nf6 {[%clk 0:02:59.8]} 2. Bg5 {[%clk 0:02:59.7]}
2... c5 {[%clk 0:02:58.5]} 3. dxc5 {[%clk 0:02:58.7]} 3... e6 {[%clk 0:02:57.7]}
4. e3 {[%clk 0:02:53.3]} 4... Bxc5 {[%clk 0:02:52.8]} 5. Nd2 {[%clk 0:02:53.8]}
5... d5 {[%clk 0:02:46.4]} 6. a3 {[%clk 0:02:53.2]} 6... Nbd7 {[%clk 0:02:43.3]}
7. Ngf3 {[%clk 0:02:53.1]} 7... h6 {[%clk 0:02:42.7]} 8. Bh4 {[%clk 0:02:52.6]}
8... a5 {[%clk 0:02:38.7]} 9. c4 {[%clk 0:02:50.4]} 9... Qb6 {[%clk 0:02:33]}
10. Rb1 {[%clk 0:02:45]} 10... Ng4 {[%clk 0:02:19.9]} 11. cxd5 {[%clk
0:02:31.8]} 11... O-O {[%clk 0:02:04]} 12. Nc4 {[%clk 0:02:21.2]} 12... Qc7
{[%clk 0:01:49.3]} 13. d6 {[%clk 0:02:17.8]} 13... Qb8 {[%clk 0:01:42.3]} 14.
Be7 {[%clk 0:02:17.4]} 14... b5 {[%clk 0:01:37.8]} 15. Ncd2 {[%clk 0:01:59.1]}
15... Bxe3 {[%clk 0:01:25.4]} 16. fxe3 {[%clk 0:01:57.1]} 16... Nxe3 {[%clk
0:01:26.3]} 17. Qb3 {[%clk 0:01:56.5]} 17... Nxf1 {[%clk 0:01:18.5]} 18. Rxf1
{[%clk 0:01:54.4]} 18... Re8 {[%clk 0:01:10.7]} 19. Qe3 {[%clk 0:01:53.8]} 19...
Bb7 {[%clk 0:01:07]} 20. Kf2 {[%clk 0:01:53.8]} 20... Bd5 {[%clk 0:00:52]} 21.
Kg1 {[%clk 0:01:53.3]} 21... b4 {[%clk 0:00:49.5]} 22. Ne5 {[%clk 0:01:41.8]}
22... Nxe5 {[%clk 0:00:41.8]} 23. Qxe5 {[%clk 0:01:42.7]} 23... Qb6+ {[%clk
0:00:40.8]} 24. Kh1 {[%clk 0:01:39.5]} 24... Qc6 {[%clk 0:00:34]} 25. Qg3 {[%clk
0:01:27.1]} 25... Qc2 {[%clk 0:00:25.7]} 26. Nf3 {[%clk 0:01:23.5]} 26... bxa3
{[%clk 0:00:22.9]} 27. bxa3 {[%clk 0:01:22.8]} 27... a4 {[%clk 0:00:16.3]} 28.
Rbc1 {[%clk 0:01:13.9]} 28... Qe2 {[%clk 0:00:15.6]} 29. Rfe1 {[%clk 0:01:08.5]}
29... Qa2 {[%clk 0:00:15.7]} 30. d7 {[%clk 0:01:06.9]} 30... Rxe7 {[%clk
0:00:15.9]} 31. Rc8+ {[%clk 0:01:07.1]} 1-0

[Event "Early-Titled-Tuesday-Blitz-January-16-2024"]
[Site "Chess.com"]
[Date "2024.01.16"]
[Round "2"]
[White "Viktor_Poddubnyi"]
[Black "TitarovVasiliYouTube"]
[Result "0-1"]
[WhiteElo "2301"]
[BlackElo "2540"]
[TimeControl "180+1"]
[EndTime "8:17:13 PST"]
[Termination "TitarovVasiliYouTube won on time"]

1. e4 {[%clk 0:03:00.9]} 1... c5 {[%clk 0:03:00]} 2. Nf3 {[%clk 0:03:00.3]} 2...
Nf6 {[%clk 0:03:00.5]} 3. e5 {[%clk 0:03:00.2]} 3... Nd5 {[%clk 0:03:00.8]} 4.
d4 {[%clk 0:03:00.5]} 4... cxd4 {[%clk 0:03:00.8]} 5. Qxd4 {[%clk 0:03:01.4]}
5... e6 {[%clk 0:02:59.5]} 6. Bc4 {[%clk 0:03:01.8]} 6... Nc6 {[%clk 0:02:59]}
7. Qe4 {[%clk 0:03:02.5]} 7... f5 {[%clk 0:02:48.1]} 8. Qe2 {[%clk 0:03:02.2]}
8... Nb6 {[%clk 0:02:45.2]} 9. Bb3 {[%clk 0:03:01]} 9... Be7 {[%clk 0:02:44.4]}
10. O-O {[%clk 0:03:00.1]} 10... O-O {[%clk 0:02:44.4]} 11. Nc3 {[%clk
0:02:50.9]} 11... Na5 {[%clk 0:02:41.3]} 12. Re1 {[%clk 0:02:47.7]} 12... a6
{[%clk 0:02:02]} 13. Be3 {[%clk 0:02:40.9]} 13... Qc7 {[%clk 0:01:59.1]} 14.
Rad1 {[%clk 0:02:31.4]} 14... Nbc4 {[%clk 0:01:54.9]} 15. Bc1 {[%clk 0:02:28.7]}
15... b5 {[%clk 0:01:52.1]} 16. Qd3 {[%clk 0:01:38.1]} 16... Rd8 {[%clk
0:01:43]} 17. Bg5 {[%clk 0:01:16]} 17... Nxb2 {[%clk 0:01:23.8]} 18. Qd4 {[%clk
0:00:36]} 18... Bxg5 {[%clk 0:01:16.9]} 19. Nxg5 {[%clk 0:00:33.8]} 19... Nxd1
{[%clk 0:01:15.5]} 20. Nxd1 {[%clk 0:00:16.6]} 20... Nxb3 {[%clk 0:01:15.1]} 21.
cxb3 {[%clk 0:00:15]} 21... h6 {[%clk 0:01:13.2]} 22. Nh3 {[%clk 0:00:08.4]}
22... Bb7 {[%clk 0:01:13.5]} 23. Nf4 {[%clk 0:00:08.4]} 23... Rac8 {[%clk
0:01:11.7]} 24. Nh5 {[%clk 0:00:07.5]} 24... Qc1 {[%clk 0:01:06.6]} 0-1

[Event "Early-Titled-Tuesday-Blitz-January-16-2024"]
[Site "Chess.com"]
[Date "2024.01.16"]
[Round "2"]
[White "Alenzer"]
[Black "Tolyanius"]
[Result "0-1"]
[WhiteElo "2112"]
[BlackElo "2463"]
[TimeControl "180+1"]
[EndTime "8:17:13 PST"]
[Termination "Tolyanius won by resignation"]

1. e4 {[%clk 0:02:59.5]} 1... e5 {[%clk 0:03:00]} 2. Nf3 {[%clk 0:02:59]} 2...
Nc6 {[%clk 0:03:00.7]} 3. Bb5 {[%clk 0:02:58.1]} 3... Nge7 {[%clk 0:03:00.8]} 4.
c3 {[%clk 0:02:55.9]} 4... a6 {[%clk 0:03:01.2]} 5. Ba4 {[%clk 0:02:55.7]} 5...
d6 {[%clk 0:03:01.8]} 6. d4 {[%clk 0:02:54.5]} 6... Bd7 {[%clk 0:03:02.3]} 7.
O-O {[%clk 0:02:53.1]} 7... Ng6 {[%clk 0:03:02.2]} 8. Bb3 {[%clk 0:02:42.4]}
8... Be7 {[%clk 0:03:01.6]} 9. Re1 {[%clk 0:02:33.9]} 9... h6 {[%clk 0:03:01.4]}
10. Nbd2 {[%clk 0:02:32.6]} 10... Bg5 {[%clk 0:03:01.2]} 11. Nf1 {[%clk
0:02:32.3]} 11... Bxc1 {[%clk 0:03:00.9]} 12. Rxc1 {[%clk 0:02:32.2]} 12... Qf6
{[%clk 0:02:48.5]} 13. Ng3 {[%clk 0:02:25.5]} 13... Nf4 {[%clk 0:02:47.8]} 14.
Qd2 {[%clk 0:01:42.9]} 14... h5 {[%clk 0:02:19.1]} 15. h4 {[%clk 0:00:59.4]}
15... Bg4 {[%clk 0:02:18.2]} 16. Ng5 {[%clk 0:00:57.1]} 16... O-O {[%clk
0:01:44]} 17. d5 {[%clk 0:00:35.2]} 17... Ne7 {[%clk 0:01:43.3]} 18. Bd1 {[%clk
0:00:34.3]} 18... Neg6 {[%clk 0:01:28.4]} 19. f3 {[%clk 0:00:29.2]} 19... Bc8
{[%clk 0:00:59]} 20. c4 {[%clk 0:00:25.2]} 20... Nxh4 {[%clk 0:00:58.8]} 21. Re2
{[%clk 0:00:09.4]} 21... Qxg5 {[%clk 0:00:56.5]} 22. Rf2 {[%clk 0:00:06]} 22...
Qxg3 {[%clk 0:00:53.8]} 0-1

[Event "Early-Titled-Tuesday-Blitz-January-16-2024"]
[Site "Chess.com"]
[Date "2024.01.16"]
[Round "2"]
[White "bubeliang"]
[Black "andrzej"]
[Result "1-0"]
[WhiteElo "2776"]
[BlackElo "2401"]
[TimeControl "180+1"]
[EndTime "8:17:14 PST"]
[Termination "bubeliang won on time"]

1. b3 {[%clk 0:03:00.9]} 1... d5 {[%clk 0:02:58.4]} 2. Bb2 {[%clk 0:03:00.5]}
2... c5 {[%clk 0:02:58.5]} 3. f4 {[%clk 0:02:59.2]} 3... Nf6 {[%clk 0:02:58.2]}
4. Nf3 {[%clk 0:02:58.5]} 4... g6 {[%clk 0:02:58.6]} 5. e3 {[%clk 0:02:56.9]}
5... Bg7 {[%clk 0:02:58.9]} 6. Be2 {[%clk 0:02:57.4]} 6... O-O {[%clk
0:02:58.8]} 7. O-O {[%clk 0:02:57.9]} 7... d4 {[%clk 0:02:53.2]} 8. exd4 {[%clk
0:02:57.2]} 8... Nd5 {[%clk 0:02:53]} 9. Ne5 {[%clk 0:02:50.9]} 9... Nc6 {[%clk
0:02:34.2]} 10. c4 {[%clk 0:02:42.8]} 10... Nf6 {[%clk 0:01:58.6]} 11. d5 {[%clk
0:02:41.4]} 11... Nd4 {[%clk 0:01:55]} 12. Na3 {[%clk 0:02:39.2]} 12... Bf5
{[%clk 0:01:48.2]} 13. d3 {[%clk 0:02:35.7]} 13... b5 {[%clk 0:01:25.6]} 14. Nc2
{[%clk 0:02:33.5]} 14... Nxc2 {[%clk 0:01:15.8]} 15. Qxc2 {[%clk 0:02:32.1]}
15... bxc4 {[%clk 0:01:16]} 16. bxc4 {[%clk 0:02:33]} 16... Rb8 {[%clk
0:01:15.7]} 17. Nc6 {[%clk 0:02:32.8]} 17... Qd7 {[%clk 0:00:55.9]} 18. Nxb8
{[%clk 0:02:31.5]} 18... Rxb8 {[%clk 0:00:56.8]} 19. Be5 {[%clk 0:02:31.7]}
19... Rd8 {[%clk 0:00:55.2]} 20. Rab1 {[%clk 0:02:30.7]} 20... e6 {[%clk
0:00:55.1]} 21. Qc3 {[%clk 0:02:25.9]} 21... exd5 {[%clk 0:00:48.4]} 22. cxd5
{[%clk 0:02:16.3]} 22... Nxd5 {[%clk 0:00:48.3]} 23. Qxc5 {[%clk 0:02:16.2]}
23... Rc8 {[%clk 0:00:39.2]} 24. Qd4 {[%clk 0:02:11.2]} 24... f6 {[%clk
0:00:27.9]} 25. Bf3 {[%clk 0:02:10.5]} 25... Nb6 {[%clk 0:00:12.7]} 26. Qxd7
{[%clk 0:01:58.9]} 26... Nxd7 {[%clk 0:00:13.6]} 27. Bd4 {[%clk 0:01:55.7]}
27... Bxd3 {[%clk 0:00:12.9]} 28. Bd5+ {[%clk 0:01:55.7]} 28... Kh8 {[%clk
0:00:12]} 29. Be6 {[%clk 0:01:56.2]} 29... Bxf1 {[%clk 0:00:09.8]} 30. Kxf1
{[%clk 0:01:49.7]} 30... Rd8 {[%clk 0:00:07.6]} 31. Bxd7 {[%clk 0:01:49.4]}
31... Rxd7 {[%clk 0:00:05.3]} 32. Rb8+ {[%clk 0:01:49.4]} 32... Bf8 {[%clk
0:00:05.9]} 33. Bc5 {[%clk 0:01:49.9]} 33... Kg7 {[%clk 0:00:02.7]} 34. Bxf8+
{[%clk 0:01:47.6]} 34... Kf7 {[%clk 0:00:03]} 35. Bc5 {[%clk 0:01:47.9]} 35...
Rd2 {[%clk 0:00:02.8]} 36. Rb7+ {[%clk 0:01:46.8]} 36... Ke6 {[%clk 0:00:03.1]}
37. Rxa7 {[%clk 0:01:47.7]} 37... h5 {[%clk 0:00:03]} 38. Be3 {[%clk 0:01:47.9]}
38... Rc2 {[%clk 0:00:02]} 39. Ra5 {[%clk 0:01:47.9]} 1-0

[Event "Early-Titled-Tuesday-Blitz-January-16-2024"]
[Site "Chess.com"]
[Date "2024.01.16"]
[Round "2"]
[White "knightinshiningarmour16"]
[Black "AttilaTurzo"]
[Result "0-1"]
[WhiteElo "2188"]
[BlackElo "2484"]
[TimeControl "180+1"]
[EndTime "8:17:18 PST"]
[Termination "AttilaTurzo won by checkmate"]

1. e4 {[%clk 0:02:59.9]} 1... c5 {[%clk 0:02:59.5]} 2. Nf3 {[%clk 0:02:51.8]}
2... d6 {[%clk 0:03:00]} 3. d4 {[%clk 0:02:45.4]} 3... cxd4 {[%clk 0:03:00.9]}
4. Nxd4 {[%clk 0:02:44.4]} 4... Nf6 {[%clk 0:03:01.5]} 5. f3 {[%clk 0:02:42.8]}
5... a6 {[%clk 0:03:00.9]} 6. c4 {[%clk 0:02:40.8]} 6... e5 {[%clk 0:02:51.2]}
7. Nb3 {[%clk 0:02:36.3]} 7... Be7 {[%clk 0:02:47.5]} 8. Nc3 {[%clk 0:02:35.6]}
8... O-O {[%clk 0:02:43.9]} 9. Be3 {[%clk 0:02:34.9]} 9... a5 {[%clk 0:02:39]}
10. Be2 {[%clk 0:02:27.4]} 10... a4 {[%clk 0:02:38]} 11. Nd2 {[%clk 0:02:26.8]}
11... a3 {[%clk 0:02:38]} 12. b3 {[%clk 0:02:27]} 12... Nc6 {[%clk 0:02:35.1]}
13. O-O {[%clk 0:02:23.3]} 13... Be6 {[%clk 0:02:31.9]} 14. Nd5 {[%clk
0:02:22.8]} 14... Nd7 {[%clk 0:02:29.3]} 15. Re1 {[%clk 0:02:15.3]} 15... Bg5
{[%clk 0:02:26.5]} 16. Bf2 {[%clk 0:02:13.3]} 16... Nc5 {[%clk 0:02:24.3]} 17.
b4 {[%clk 0:01:56]} 17... Na4 {[%clk 0:02:17.3]} 18. b5 {[%clk 0:01:54.4]} 18...
Nd4 {[%clk 0:01:57.2]} 19. Bf1 {[%clk 0:01:48.4]} 19... Nb2 {[%clk 0:01:41.1]}
20. Qc1 {[%clk 0:01:42.5]} 20... Qa5 {[%clk 0:01:36.8]} 21. Be3 {[%clk
0:01:37.5]} 21... Bxe3+ {[%clk 0:01:32.2]} 22. Rxe3 {[%clk 0:01:38.4]} 22...
Bxd5 {[%clk 0:01:24.3]} 23. cxd5 {[%clk 0:01:32.7]} 23... Rfc8 {[%clk
0:01:24.3]} 24. Nc4 {[%clk 0:01:19.8]} 24... Nxc4 {[%clk 0:01:06.2]} 25. Bxc4
{[%clk 0:01:19.3]} 25... Qb4 {[%clk 0:01:02.4]} 26. Rc3 {[%clk 0:01:06.6]} 26...
Ra4 {[%clk 0:01:01.6]} 27. Rb1 {[%clk 0:01:02.6]} 27... Qc5 {[%clk 0:01:00]} 28.
Bb3 {[%clk 0:00:52.6]} 28... Ne2+ {[%clk 0:00:45.3]} 29. Kh1 {[%clk 0:00:50.5]}
29... Nxc3 {[%clk 0:00:45.6]} 30. Bxa4 {[%clk 0:00:48.4]} 30... Nxb1 {[%clk
0:00:43.2]} 31. Qxb1 {[%clk 0:00:45.7]} 31... Qc1+ {[%clk 0:00:43.2]} 32. Qxc1
{[%clk 0:00:44.4]} 32... Rxc1+ {[%clk 0:00:44.1]} 33. Bd1 {[%clk 0:00:44.6]}
33... Rxd1# {[%clk 0:00:44.2]} 0-1